[Event "January 9 Late 2024"]
[Site "https://www.chess.com"]
[Date "2024.01.09"]
[Round "11"]
[White "Urbina Perez, Juan Antonio"]
[Black "Zavgorodniy, Sergiy"]
[Result "1/2-1/2"]
[Board "63"]
[TimeControl "180+1"]
[WhiteFideId "2217368"]
[BlackFideId "14110148"]
[WhiteElo "2529"]
[BlackElo "2617"]
[WhiteTeam "ESP"]
[BlackTeam "UKR"]
[WhiteClock "0:00:04"]
[BlackClock "0:00:08"]

1. d4 {[%clk 0:02:57]}  d5 {[%clk 0:02:59]} 2. c4 {[%clk 0:02:57]}  dxc4 {[%clk 0:03:00]} 3. Nf3 {[%clk 0:02:56]}  Nf6 {[%clk 0:03:01]} 4. e3 {[%clk 0:02:56]}  e6 {[%clk 0:03:01]} 5. Bxc4 {[%clk 0:02:56]}  a6 {[%clk 0:03:02]} 6. O-O {[%clk 0:02:56]}  b5 {[%clk 0:03:03]} 7. Be2 {[%clk 0:02:55]}  Bb7 {[%clk 0:03:03]} 8. b3 {[%clk 0:02:54]}  Nbd7 {[%clk 0:03:03]} 9. Bb2 {[%clk 0:02:54]}  c5 {[%clk 0:03:03]} 10. dxc5 {[%clk 0:02:54]}  Bxc5 {[%clk 0:03:03]} 11. Nc3 {[%clk 0:02:52]}  O-O {[%clk 0:03:04]} 12. Rc1 {[%clk 0:02:51]}  Qb6 {[%clk 0:03:04]} 13. Qd2 {[%clk 0:02:47]}  Rfd8 {[%clk 0:03:03]} 14. Rfd1 {[%clk 0:02:44]}  Ne5 {[%clk 0:02:59]} 15. Qe1 {[%clk 0:02:39]}  Nxf3+ {[%clk 0:02:58]} 16. Bxf3 {[%clk 0:02:40]}  Bxf3 {[%clk 0:02:57]} 17. gxf3 {[%clk 0:02:41]}  Qb7 {[%clk 0:02:48]} 18. Qe2 {[%clk 0:02:36]}  Be7 {[%clk 0:02:46]} 19. Rxd8+ {[%clk 0:02:35]}  Rxd8 {[%clk 0:02:45]} 20. Rd1 {[%clk 0:02:36]}  Rc8 {[%clk 0:02:43]} 21. Rc1 {[%clk 0:02:30]}  h6 {[%clk 0:02:42]} 22. Nb1 {[%clk 0:02:12]}  Rd8 {[%clk 0:02:41]} 23. Rd1 {[%clk 0:02:11]}  Rc8 {[%clk 0:02:40]} 24. Rc1 {[%clk 0:02:11]}  Rxc1+ {[%clk 0:02:38]} 25. Bxc1 {[%clk 0:02:11]}  Qc6 {[%clk 0:02:39]} 26. Bb2 {[%clk 0:02:07]}  Nd5 {[%clk 0:02:38]} 27. Qd1 {[%clk 0:01:56]}  Bf6 {[%clk 0:02:36]} 28. Qc1 {[%clk 0:01:48]}  Qb7 {[%clk 0:02:33]} 29. Bxf6 {[%clk 0:01:46]}  Nxf6 {[%clk 0:02:34]} 30. Kg2 {[%clk 0:01:43]}  Nd5 {[%clk 0:02:25]} 31. Qd2 {[%clk 0:01:39]}  Qe7 {[%clk 0:02:24]} 32. Nc3 {[%clk 0:01:31]}  Qg5+ {[%clk 0:02:23]} 33. Kf1 {[%clk 0:01:30]}  Nxc3 {[%clk 0:02:06]} 34. Qxc3 {[%clk 0:01:31]}  Qd8 {[%clk 0:02:01]} 35. Ke2 {[%clk 0:01:29]}  Qa8 {[%clk 0:01:53]} 36. Qd3 {[%clk 0:01:24]}  g6 {[%clk 0:01:52]} 37. Qd7 {[%clk 0:01:21]}  h5 {[%clk 0:01:50]} 38. b4 {[%clk 0:01:13]}  Qb8 {[%clk 0:01:50]} 39. f4 {[%clk 0:01:10]}  Qb6 {[%clk 0:01:48]} 40. Qc8+ {[%clk 0:01:06]}  Kg7 {[%clk 0:01:46]} 41. Qc3+ {[%clk 0:01:06]}  Kh7 {[%clk 0:01:46]} 42. Qc5 {[%clk 0:01:02]}  Qb7 {[%clk 0:01:42]} 43. f3 {[%clk 0:01:00]}  Qd7 {[%clk 0:01:38]} 44. Qc3 {[%clk 0:00:55]}  Qd5 {[%clk 0:01:36]} 45. Qd2 {[%clk 0:00:52]}  Qc4+ {[%clk 0:01:35]} 46. Kf2 {[%clk 0:00:52]}  Kg7 {[%clk 0:01:28]} 47. Qb2+ {[%clk 0:00:50]}  Kg8 {[%clk 0:01:28]} 48. Qd2 {[%clk 0:00:50]}  Kf8 {[%clk 0:01:18]} 49. Qd6+ {[%clk 0:00:49]}  Kg8 {[%clk 0:01:17]} 50. Qd2 {[%clk 0:00:49]}  Qc7 {[%clk 0:01:13]} 51. Ke2 {[%clk 0:00:46]}  Qc8 {[%clk 0:01:07]} 52. Kf2 {[%clk 0:00:45]}  Kh7 {[%clk 0:01:06]} 53. Kg2 {[%clk 0:00:42]}  Qc7 {[%clk 0:01:05]} 54. Kf2 {[%clk 0:00:42]}  Qe7 {[%clk 0:01:04]} 55. Qd4 {[%clk 0:00:39]}  Qh4+ {[%clk 0:01:02]} 56. Kg2 {[%clk 0:00:39]}  Qe1 {[%clk 0:01:01]} 57. Qd7 {[%clk 0:00:24]}  Qe2+ {[%clk 0:00:59]} 58. Kg3 {[%clk 0:00:21]}  Kg8 {[%clk 0:00:49]} 59. Qd8+ {[%clk 0:00:21]}  Kg7 {[%clk 0:00:49]} 60. Qd4+ {[%clk 0:00:22]}  Kh7 {[%clk 0:00:49]} 61. Qd7 {[%clk 0:00:22]}  h4+ {[%clk 0:00:42]} 62. Kh3 {[%clk 0:00:19]}  Qxf3+ {[%clk 0:00:39]} 63. Kxh4 {[%clk 0:00:19]}  Qh5+ {[%clk 0:00:35]} 64. Kg3 {[%clk 0:00:19]}  Kg7 {[%clk 0:00:29]} 65. Qd4+ {[%clk 0:00:19]}  Kh7 {[%clk 0:00:28]} 66. Qd7 {[%clk 0:00:20]}  Qf5 {[%clk 0:00:27]} 67. e4 {[%clk 0:00:18]}  Qf6 {[%clk 0:00:25]} 68. h4 {[%clk 0:00:16]}  Kg7 {[%clk 0:00:23]} 69. e5 {[%clk 0:00:15]}  Qf5 {[%clk 0:00:23]} 70. Qd8 {[%clk 0:00:15]}  Qb1 {[%clk 0:00:14]} 71. Qf6+ {[%clk 0:00:14]}  Kg8 {[%clk 0:00:14]} 72. Qd8+ {[%clk 0:00:14]}  Kh7 {[%clk 0:00:14]} 73. Qf6 {[%clk 0:00:14]}  Qd3+ {[%clk 0:00:14]} 74. Kg2 {[%clk 0:00:13]}  Qd2+ {[%clk 0:00:13]} 75. Kg3 {[%clk 0:00:13]}  Kg8 {[%clk 0:00:13]} 76. Kf3 {[%clk 0:00:11]}  Qxb4 {[%clk 0:00:13]} 77. Qd8+ {[%clk 0:00:10]}  Kh7 {[%clk 0:00:12]} 78. Qf6 {[%clk 0:00:10]}  Kg8 {[%clk 0:00:11]} 79. h5 {[%clk 0:00:10]}  Qc3+ {[%clk 0:00:09]} 80. Kf2 {[%clk 0:00:10]}  Qc2+ {[%clk 0:00:08]} 81. Kg3 {[%clk 0:00:10]}  Qd3+ {[%clk 0:00:08]} 82. Kf2 {[%clk 0:00:09]}  Qd2+ {[%clk 0:00:08]} 83. Kg3 {[%clk 0:00:10]}  Qe3+ {[%clk 0:00:08]} 84. Kh2 {[%clk 0:00:09]}  Qe2+ {[%clk 0:00:08]} 85. Kg3 {[%clk 0:00:10]}  Qxh5 {[%clk 0:00:08]} 86. Qd8+ {[%clk 0:00:10]}  Kh7 {[%clk 0:00:08]} 87. Qc7 {[%clk 0:00:10]}  Qf5 {[%clk 0:00:07]} 88. Qb7 {[%clk 0:00:10]}  g5 {[%clk 0:00:07]} 89. fxg5 {[%clk 0:00:08]}  Qxg5+ {[%clk 0:00:08]} 90. Kh3 {[%clk 0:00:07]}  Kg6 {[%clk 0:00:08]} 91. Qxa6 {[%clk 0:00:07]}  Qf5+ {[%clk 0:00:09]} 92. Kg2 {[%clk 0:00:07]}  Qe4+ {[%clk 0:00:08]} 93. Kh3 {[%clk 0:00:06]}  Qxe5 {[%clk 0:00:09]} 94. Qc8 {[%clk 0:00:06]}  Qf5+ {[%clk 0:00:08]} 95. Kh2 {[%clk 0:00:06]}  Qe5+ {[%clk 0:00:08]} 96. Kh3 {[%clk 0:00:06]}  Kg7 {[%clk 0:00:08]} 97. Qd8 {[%clk 0:00:04]}  Qf5+ {[%clk 0:00:08]} 98. Kh2 {[%clk 0:00:05]}  Qc2+ {[%clk 0:00:07]} 99. Kh3 {[%clk 0:00:04]}  Qc3+ {[%clk 0:00:08]} 100. Kh2 {[%clk 0:00:04]}  Qb2+ {[%clk 0:00:08]} 101. Kh3 {[%clk 0:00:04]}  Qf6 {[%clk 0:00:08]} 102. Qb8 {[%clk 0:00:03]}  Qf5+ {[%clk 0:00:07]} 103. Kh2 {[%clk 0:00:03]}  Qc2+ {[%clk 0:00:07]} 104. Kh3 {[%clk 0:00:04]}  Qxa2 {[%clk 0:00:07]} 105. Qe5+ {[%clk 0:00:02]}  Kg8 {[%clk 0:00:06]} 106. Qg5+ {[%clk 0:00:02]}  Kh7 {[%clk 0:00:06]} 107. Qh5+ {[%clk 0:00:01]}  Kg7 {[%clk 0:00:06]} 108. Qg5+ {[%clk 0:00:01]}  Kf8 {[%clk 0:00:06]} 109. Qd8+ {[%clk 0:00:02]}  Kg7 {[%clk 0:00:07]} 110. Qg5+ {[%clk 0:00:02]}  Kh7 {[%clk 0:00:08]} 111. Qh5+ {[%clk 0:00:03]}  Kg8 {[%clk 0:00:07]} 112. Qg5+ {[%clk 0:00:03]}  Kh8 {[%clk 0:00:08]} 113. Qh5+ {[%clk 0:00:03]}  Kg8 {[%clk 0:00:08]} 114. Qg5+ {[%clk 0:00:04]} 1/2-1/2

[Event "January 9 Late 2024"]
[Site "https://www.chess.com"]
[Date "2024.01.09"]
[Round "11"]
[White "Mokshanov, Alexey"]
[Black "Ladan, Nicholas"]
[Result "1-0"]
[Board "64"]
[TimeControl "180+1"]
[WhiteFideId "24121657"]
[BlackFideId "30918855"]
[WhiteElo "2616"]
[BlackElo "2506"]
[WhiteTeam "RUS"]
[BlackTeam "USA"]
[WhiteClock "0:00:28"]
[BlackClock "0:00:02"]

1. e4 {[%clk 0:03:00]}  e5 {[%clk 0:02:59]} 2. Nf3 {[%clk 0:03:00]}  Nc6 {[%clk 0:02:59]} 3. d4 {[%clk 0:03:01]}  exd4 {[%clk 0:02:59]} 4. Nxd4 {[%clk 0:03:02]}  Bb4+ {[%clk 0:02:56]} 5. c3 {[%clk 0:02:59]}  Bc5 {[%clk 0:02:55]} 6. Be3 {[%clk 0:02:59]}  Qf6 {[%clk 0:02:52]} 7. Qd2 {[%clk 0:02:48]}  Nge7 {[%clk 0:02:48]} 8. Nxc6 {[%clk 0:02:44]}  Qxc6 {[%clk 0:02:40]} 9. Bxc5 {[%clk 0:02:43]}  Qxc5 {[%clk 0:02:40]} 10. Qd4 {[%clk 0:02:42]}  Qg5 {[%clk 0:02:32]} 11. Nd2 {[%clk 0:02:33]}  O-O {[%clk 0:02:29]} 12. Nf3 {[%clk 0:02:29]}  Qg6 {[%clk 0:02:23]} 13. Ne5 {[%clk 0:02:28]}  Qb6 {[%clk 0:02:15]} 14. O-O-O {[%clk 0:02:11]}  d6 {[%clk 0:02:15]} 15. Nc4 {[%clk 0:02:11]}  Qa6 {[%clk 0:02:10]} 16. Kb1 {[%clk 0:02:06]}  Be6 {[%clk 0:02:10]} 17. Na3 {[%clk 0:01:47]}  Qb6 {[%clk 0:02:02]} 18. Bc4 {[%clk 0:01:47]}  Nc6 {[%clk 0:01:59]} 19. Qxb6 {[%clk 0:01:46]}  axb6 {[%clk 0:01:58]} 20. Bxe6 {[%clk 0:01:47]}  fxe6 {[%clk 0:01:58]} 21. f3 {[%clk 0:01:47]}  Ne5 {[%clk 0:01:47]} 22. Nb5 {[%clk 0:01:46]}  Rf7 {[%clk 0:01:46]} 23. a3 {[%clk 0:01:44]}  Ra5 {[%clk 0:01:40]} 24. Nd4 {[%clk 0:01:42]}  Re7 {[%clk 0:01:37]} 25. Nc2 {[%clk 0:01:36]}  g5 {[%clk 0:01:32]} 26. Ne3 {[%clk 0:01:35]}  Rf7 {[%clk 0:01:26]} 27. h4 {[%clk 0:01:35]}  g4 {[%clk 0:01:19]} 28. Nxg4 {[%clk 0:01:25]}  Nxg4 {[%clk 0:01:19]} 29. fxg4 {[%clk 0:01:26]}  Re5 {[%clk 0:01:19]} 30. Rd4 {[%clk 0:01:05]}  Rf4 {[%clk 0:01:19]} 31. Ra4 {[%clk 0:01:06]}  Rexe4 {[%clk 0:01:13]} 32. Ra8+ {[%clk 0:01:06]}  Kg7 {[%clk 0:01:11]} 33. Rb8 {[%clk 0:01:06]}  Rxg4 {[%clk 0:00:59]} 34. Rxb7 {[%clk 0:01:02]}  Rxg2 {[%clk 0:00:52]} 35. Rxc7+ {[%clk 0:01:00]}  Kg6 {[%clk 0:00:50]} 36. Rc6 {[%clk 0:01:00]}  b5 {[%clk 0:00:47]} 37. Rb6 {[%clk 0:00:51]}  Re5 {[%clk 0:00:44]} 38. Ka2 {[%clk 0:00:50]}  h5 {[%clk 0:00:41]} 39. Rxd6 {[%clk 0:00:49]}  Ree2 {[%clk 0:00:36]} 40. Rb1 {[%clk 0:00:49]}  Kf5 {[%clk 0:00:36]} 41. Rb6 {[%clk 0:00:46]}  Rh2 {[%clk 0:00:33]} 42. Rxb5+ {[%clk 0:00:45]}  e5 {[%clk 0:00:33]} 43. a4 {[%clk 0:00:38]}  Rxh4 {[%clk 0:00:31]} 44. a5 {[%clk 0:00:38]}  Rg4 {[%clk 0:00:23]} 45. Kb3 {[%clk 0:00:38]}  h4 {[%clk 0:00:22]} 46. a6 {[%clk 0:00:36]}  Rg8 {[%clk 0:00:14]} 47. a7 {[%clk 0:00:35]}  Ra8 {[%clk 0:00:14]} 48. Ra1 {[%clk 0:00:30]}  h3 {[%clk 0:00:05]} 49. Rb8 {[%clk 0:00:30]}  Rxa7 {[%clk 0:00:05]} 50. Rxa7 {[%clk 0:00:31]}  h2 {[%clk 0:00:05]} 51. Rh8 {[%clk 0:00:29]}  Kg4 {[%clk 0:00:05]} 52. Rah7 {[%clk 0:00:27]}  Kg3 {[%clk 0:00:02]} 53. Rh3+ {[%clk 0:00:28]} 1-0

[Event "January 9 Late 2024"]
[Site "https://www.chess.com"]
[Date "2024.01.09"]
[Round "11"]
[White "Pinheiro, Iung Alicio de O."]
[Black "Ezat, Mohamed"]
[Result "0-1"]
[Board "65"]
[TimeControl "180+1"]
[WhiteFideId "2104350"]
[BlackFideId "10600906"]
[WhiteElo "2609"]
[BlackElo "2491"]
[WhiteTeam "BRA"]
[BlackTeam "EGY"]
[WhiteClock "0:00:00"]
[BlackClock "0:00:07"]

1. e4 {[%clk 0:03:00]}  e5 {[%clk 0:02:58]} 2. Nf3 {[%clk 0:02:59]}  Nc6 {[%clk 0:02:30]} 3. g3 {[%clk 0:02:56]}  d5 {[%clk 0:02:29]} 4. exd5 {[%clk 0:02:55]}  Qxd5 {[%clk 0:02:29]} 5. Nc3 {[%clk 0:02:56]}  Qd8 {[%clk 0:02:27]} 6. Bg2 {[%clk 0:02:54]}  Nf6 {[%clk 0:02:27]} 7. O-O {[%clk 0:02:42]}  Bc5 {[%clk 0:02:18]} 8. d3 {[%clk 0:02:23]}  h6 {[%clk 0:02:17]} 9. Na4 {[%clk 0:02:11]}  Be7 {[%clk 0:02:16]} 10. Re1 {[%clk 0:02:10]}  Bg4 {[%clk 0:02:14]} 11. h3 {[%clk 0:02:09]}  Bxf3 {[%clk 0:02:14]} 12. Bxf3 {[%clk 0:02:05]}  O-O {[%clk 0:02:10]} 13. Nc3 {[%clk 0:02:02]}  Bb4 {[%clk 0:02:08]} 14. Bxc6 {[%clk 0:01:49]}  bxc6 {[%clk 0:02:07]} 15. Rxe5 {[%clk 0:01:49]}  Qd7 {[%clk 0:02:07]} 16. Kg2 {[%clk 0:01:42]}  Rfe8 {[%clk 0:02:07]} 17. Bf4 {[%clk 0:01:39]}  Bxc3 {[%clk 0:01:59]} 18. Rxe8+ {[%clk 0:01:39]}  Rxe8 {[%clk 0:01:57]} 19. bxc3 {[%clk 0:01:40]}  Nd5 {[%clk 0:01:46]} 20. Bd2 {[%clk 0:01:38]}  c5 {[%clk 0:01:45]} 21. c4 {[%clk 0:01:35]}  Ne7 {[%clk 0:01:41]} 22. Qf3 {[%clk 0:01:29]}  Nc6 {[%clk 0:01:41]} 23. Bc3 {[%clk 0:01:29]}  Nd4 {[%clk 0:01:39]} 24. Bxd4 {[%clk 0:01:28]}  Qxd4 {[%clk 0:01:39]} 25. Rb1 {[%clk 0:01:27]}  Qc3 {[%clk 0:01:29]} 26. Rb7 {[%clk 0:01:24]}  Qe5 {[%clk 0:01:21]} 27. Qc6 {[%clk 0:01:20]}  Re6 {[%clk 0:01:16]} 28. Qxc7 {[%clk 0:01:15]}  Qf5 {[%clk 0:01:11]} 29. Qd8+ {[%clk 0:00:52]}  Kh7 {[%clk 0:01:10]} 30. Qd5 {[%clk 0:00:53]}  Qg6 {[%clk 0:01:01]} 31. Qf3 {[%clk 0:00:48]}  f5 {[%clk 0:00:53]} 32. Rxa7 {[%clk 0:00:40]}  Re1 {[%clk 0:00:41]} 33. Ra8 {[%clk 0:00:28]}  f4 {[%clk 0:00:37]} 34. Qd5 {[%clk 0:00:25]}  Qf6 {[%clk 0:00:32]} 35. Qf3 {[%clk 0:00:20]}  Qa1 {[%clk 0:00:28]} 36. Qxf4 {[%clk 0:00:20]}  Rg1+ {[%clk 0:00:27]} 37. Kf3 {[%clk 0:00:19]}  Qd1+ {[%clk 0:00:21]} 38. Ke4 {[%clk 0:00:19]}  Re1+ {[%clk 0:00:17]} 39. Kd5 {[%clk 0:00:20]}  Qh5+ {[%clk 0:00:16]} 40. Kc6 {[%clk 0:00:15]}  Qg6+ {[%clk 0:00:15]} 41. Qd6 {[%clk 0:00:15]}  Re6 {[%clk 0:00:14]} 42. Rd8 {[%clk 0:00:15]}  Qf6 {[%clk 0:00:12]} 43. Kxc5 {[%clk 0:00:14]}  Qxf2+ {[%clk 0:00:11]} 44. Qd4 {[%clk 0:00:11]}  Qf5+ {[%clk 0:00:09]} 45. Rd5 {[%clk 0:00:11]}  Qf8+ {[%clk 0:00:09]} 46. Rd6 {[%clk 0:00:11]}  Qc8+ {[%clk 0:00:08]} 47. Kd5 {[%clk 0:00:10]}  Re8 {[%clk 0:00:07]} 48. c5 {[%clk 0:00:08]}  Qb7+ {[%clk 0:00:07]} 49. Kc4 {[%clk 0:00:09]}  Qa7 {[%clk 0:00:07]} 50. Kc3 {[%clk 0:00:07]}  Qa3+ {[%clk 0:00:07]} 51. Kd2 {[%clk 0:00:06]}  Qa5+ {[%clk 0:00:08]} 52. Qc3 {[%clk 0:00:02]}  Re2+ {[%clk 0:00:07]} 53. Kxe2 {[%clk 0:00:02]}  Qxc3 {[%clk 0:00:08]} 54. c6 {[%clk 0:00:03]}  Qxc2+ {[%clk 0:00:08]} 55. Kf3 {[%clk 0:00:00]}  Qc5 {[%clk 0:00:07]} 0-1

[Event "January 9 Late 2024"]
[Site "https://www.chess.com"]
[Date "2024.01.09"]
[Round "11"]
[White "Espinoza Villanueva, Rodrigo"]
[Black "Andrews, Todd"]
[Result "1/2-1/2"]
[Board "66"]
[TimeControl "180+1"]
[WhiteFideId "5140188"]
[BlackFideId "2012456"]
[WhiteElo "2593"]
[BlackElo "2468"]
[WhiteTeam "MEX"]
[BlackTeam "USA"]
[WhiteClock "0:00:05"]
[BlackClock "0:00:04"]

1. Nf3 {[%clk 0:02:59]}  c5 {[%clk 0:02:58]} 2. g3 {[%clk 0:03:00]}  b6 {[%clk 0:02:58]} 3. Bg2 {[%clk 0:02:59]}  Bb7 {[%clk 0:02:58]} 4. O-O {[%clk 0:02:59]}  g6 {[%clk 0:02:59]} 5. d4 {[%clk 0:02:49]}  d6 {[%clk 0:02:59]} 6. c4 {[%clk 0:02:47]}  Bg7 {[%clk 0:02:58]} 7. Nc3 {[%clk 0:02:47]}  Nf6 {[%clk 0:02:57]} 8. d5 {[%clk 0:02:46]}  a6 {[%clk 0:02:57]} 9. e4 {[%clk 0:02:44]}  O-O {[%clk 0:02:56]} 10. Re1 {[%clk 0:02:43]}  b5 {[%clk 0:02:57]} 11. cxb5 {[%clk 0:02:41]}  axb5 {[%clk 0:02:57]} 12. Nxb5 {[%clk 0:02:42]}  Ba6 {[%clk 0:02:52]} 13. Nc3 {[%clk 0:02:38]}  Nbd7 {[%clk 0:02:49]} 14. Bf1 {[%clk 0:02:34]}  Bxf1 {[%clk 0:02:44]} 15. Rxf1 {[%clk 0:02:35]}  Ng4 {[%clk 0:02:43]} 16. Qe2 {[%clk 0:02:32]}  Qa5 {[%clk 0:02:41]} 17. Nd2 {[%clk 0:02:28]}  Ngf6 {[%clk 0:02:23]} 18. Nc4 {[%clk 0:02:26]}  Qa6 {[%clk 0:02:23]} 19. Bg5 {[%clk 0:02:24]}  Nb6 {[%clk 0:02:15]} 20. Nxb6 {[%clk 0:01:51]}  Qxb6 {[%clk 0:02:16]} 21. a4 {[%clk 0:01:47]}  Rfe8 {[%clk 0:02:04]} 22. Rfb1 {[%clk 0:01:45]}  Qb4 {[%clk 0:02:03]} 23. Qc2 {[%clk 0:01:43]}  e6 {[%clk 0:01:43]} 24. Bxf6 {[%clk 0:01:34]}  Bxf6 {[%clk 0:01:42]} 25. Nb5 {[%clk 0:01:35]}  exd5 {[%clk 0:01:35]} 26. Nc7 {[%clk 0:01:35]}  dxe4 {[%clk 0:01:22]} 27. a5 {[%clk 0:01:30]}  Bd4 {[%clk 0:01:13]} 28. Kg2 {[%clk 0:01:22]}  e3 {[%clk 0:01:08]} 29. f3 {[%clk 0:01:21]}  e2 {[%clk 0:01:04]} 30. Nxe8 {[%clk 0:01:19]}  Rxe8 {[%clk 0:01:03]} 31. Re1 {[%clk 0:01:16]}  Qb7 {[%clk 0:00:25]} 32. a6 {[%clk 0:01:13]}  Qa8 {[%clk 0:00:23]} 33. Rxe2 {[%clk 0:01:11]}  Rb8 {[%clk 0:00:21]} 34. Qe4 {[%clk 0:01:04]}  d5 {[%clk 0:00:18]} 35. Qe7 {[%clk 0:01:02]}  c4 {[%clk 0:00:18]} 36. a7 {[%clk 0:01:00]}  Rc8 {[%clk 0:00:15]} 37. Qd7 {[%clk 0:00:54]}  Rf8 {[%clk 0:00:15]} 38. Re7 {[%clk 0:00:48]}  Bf6 {[%clk 0:00:10]} 39. Re8 {[%clk 0:00:39]}  Rxe8 {[%clk 0:00:10]} 40. Qxe8+ {[%clk 0:00:39]}  Qxe8 {[%clk 0:00:10]} 41. a8=Q {[%clk 0:00:39]}  Qxa8 {[%clk 0:00:11]} 42. Rxa8+ {[%clk 0:00:40]}  Kg7 {[%clk 0:00:11]} 43. Ra5 {[%clk 0:00:33]}  Bxb2 {[%clk 0:00:11]} 44. Rxd5 {[%clk 0:00:32]}  c3 {[%clk 0:00:11]} 45. Rc5 {[%clk 0:00:30]}  Kf6 {[%clk 0:00:12]} 46. Kf1 {[%clk 0:00:27]}  Ke6 {[%clk 0:00:11]} 47. Ke2 {[%clk 0:00:26]}  h5 {[%clk 0:00:12]} 48. Kd3 {[%clk 0:00:24]}  Ba1 {[%clk 0:00:12]} 49. Kc2 {[%clk 0:00:22]}  Bb2 {[%clk 0:00:12]} 50. f4 {[%clk 0:00:21]}  Ba1 {[%clk 0:00:11]} 51. Rb5 {[%clk 0:00:18]}  Bb2 {[%clk 0:00:11]} 52. h3 {[%clk 0:00:17]}  Ba1 {[%clk 0:00:10]} 53. g4 {[%clk 0:00:17]}  hxg4 {[%clk 0:00:11]} 54. hxg4 {[%clk 0:00:18]}  Bb2 {[%clk 0:00:11]} 55. g5 {[%clk 0:00:17]}  Ba1 {[%clk 0:00:09]} 56. Re5+ {[%clk 0:00:15]}  Kd6 {[%clk 0:00:09]} 57. Rb5 {[%clk 0:00:15]}  Bb2 {[%clk 0:00:09]} 58. Ra5 {[%clk 0:00:14]}  Ke6 {[%clk 0:00:09]} 59. Re5+ {[%clk 0:00:13]}  Kd6 {[%clk 0:00:10]} 60. Re1 {[%clk 0:00:12]}  Kd7 {[%clk 0:00:09]} 61. Re5 {[%clk 0:00:07]}  Kd6 {[%clk 0:00:09]} 62. Ra5 {[%clk 0:00:08]}  Ke6 {[%clk 0:00:09]} 63. Ra6+ {[%clk 0:00:07]}  Ke7 {[%clk 0:00:07]} 64. Rf6 {[%clk 0:00:08]}  Ba1 {[%clk 0:00:07]} 65. f5 {[%clk 0:00:09]}  gxf5 {[%clk 0:00:07]} 66. Rxf5 {[%clk 0:00:09]}  Bb2 {[%clk 0:00:06]} 67. Re5+ {[%clk 0:00:08]}  Kd6 {[%clk 0:00:06]} 68. Re2 {[%clk 0:00:07]}  Kd7 {[%clk 0:00:06]} 69. Kd3 {[%clk 0:00:06]}  Kd6 {[%clk 0:00:07]} 70. Ke4 {[%clk 0:00:05]}  Kd7 {[%clk 0:00:05]} 71. Kf5 {[%clk 0:00:05]}  Kd6 {[%clk 0:00:05]} 72. Kg4 {[%clk 0:00:06]}  Kd7 {[%clk 0:00:05]} 73. Kh5 {[%clk 0:00:06]}  Kd6 {[%clk 0:00:05]} 74. Kh6 {[%clk 0:00:07]}  Kd7 {[%clk 0:00:06]} 75. Kh7 {[%clk 0:00:07]}  Kd6 {[%clk 0:00:06]} 76. Kg8 {[%clk 0:00:07]}  Kd5 {[%clk 0:00:03]} 77. Kxf7 {[%clk 0:00:07]}  Kd4 {[%clk 0:00:03]} 78. g6 {[%clk 0:00:07]}  Kd3 {[%clk 0:00:04]} 79. Rg2 {[%clk 0:00:04]}  c2 {[%clk 0:00:04]} 80. Rg3+ {[%clk 0:00:05]}  Kd2 {[%clk 0:00:04]} 81. Rg1 {[%clk 0:00:05]}  c1=Q {[%clk 0:00:03]} 82. Rxc1 {[%clk 0:00:05]}  Kxc1 {[%clk 0:00:04]} 83. g7 {[%clk 0:00:05]}  Bxg7 {[%clk 0:00:04]} 1/2-1/2

[Event "January 9 Late 2024"]
[Site "https://www.chess.com"]
[Date "2024.01.09"]
[Round "11"]
[White "Olenik Campa, Rudi"]
[Black "Buchenau, Frank"]
[Result "1-0"]
[Board "67"]
[TimeControl "180+1"]
[WhiteFideId "14633264"]
[BlackFideId "4604350"]
[WhiteElo "2593"]
[BlackElo "2448"]
[WhiteTeam "SLO"]
[BlackTeam "GER"]
[WhiteClock "0:00:06"]
[BlackClock "0:00:00"]

1. e4 {[%clk 0:03:00]}  e6 {[%clk 0:02:54]} 2. d4 {[%clk 0:03:00]}  d5 {[%clk 0:02:53]} 3. exd5 {[%clk 0:03:01]}  exd5 {[%clk 0:02:53]} 4. Bd3 {[%clk 0:03:02]}  Bd6 {[%clk 0:02:51]} 5. Ne2 {[%clk 0:03:02]}  Nc6 {[%clk 0:02:50]} 6. c3 {[%clk 0:03:02]}  Nge7 {[%clk 0:02:50]} 7. O-O {[%clk 0:03:02]}  Bf5 {[%clk 0:02:44]} 8. Bf4 {[%clk 0:03:02]}  O-O {[%clk 0:02:40]} 9. Na3 {[%clk 0:02:54]}  Bxa3 {[%clk 0:02:37]} 10. bxa3 {[%clk 0:02:55]}  Na5 {[%clk 0:02:26]} 11. Rb1 {[%clk 0:02:54]}  b6 {[%clk 0:02:24]} 12. Bxf5 {[%clk 0:02:52]}  Nxf5 {[%clk 0:02:23]} 13. Qd3 {[%clk 0:02:52]}  Nd6 {[%clk 0:02:12]} 14. Ng3 {[%clk 0:02:52]}  Nac4 {[%clk 0:02:10]} 15. a4 {[%clk 0:02:47]}  Re8 {[%clk 0:02:09]} 16. Rfe1 {[%clk 0:02:46]}  Qd7 {[%clk 0:02:08]} 17. Qf3 {[%clk 0:02:44]}  c6 {[%clk 0:01:56]} 18. h4 {[%clk 0:02:35]}  Re6 {[%clk 0:01:53]} 19. Rxe6 {[%clk 0:02:34]}  Qxe6 {[%clk 0:01:52]} 20. h5 {[%clk 0:02:26]}  h6 {[%clk 0:01:41]} 21. Nf1 {[%clk 0:02:19]}  Qe4 {[%clk 0:01:38]} 22. Qxe4 {[%clk 0:01:53]}  Nxe4 {[%clk 0:01:38]} 23. Rc1 {[%clk 0:01:52]}  Nf6 {[%clk 0:01:35]} 24. Ng3 {[%clk 0:01:51]}  Re8 {[%clk 0:01:33]} 25. Kf1 {[%clk 0:01:49]}  Ne4 {[%clk 0:01:29]} 26. Nxe4 {[%clk 0:01:45]}  Rxe4 {[%clk 0:01:28]} 27. g3 {[%clk 0:01:44]}  Kf8 {[%clk 0:01:23]} 28. Rb1 {[%clk 0:01:42]}  Ke7 {[%clk 0:01:19]} 29. f3 {[%clk 0:01:33]}  Re6 {[%clk 0:01:17]} 30. Kf2 {[%clk 0:01:33]}  Kd7 {[%clk 0:01:11]} 31. Bb8 {[%clk 0:01:30]}  a6 {[%clk 0:01:06]} 32. Bf4 {[%clk 0:01:30]}  Re8 {[%clk 0:00:56]} 33. g4 {[%clk 0:01:27]}  b5 {[%clk 0:00:52]} 34. g5 {[%clk 0:01:24]}  hxg5 {[%clk 0:00:51]} 35. Bxg5 {[%clk 0:01:25]}  Rh8 {[%clk 0:00:46]} 36. Rh1 {[%clk 0:01:02]}  f6 {[%clk 0:00:45]} 37. Bf4 {[%clk 0:00:57]}  Ke6 {[%clk 0:00:40]} 38. Rg1 {[%clk 0:00:53]}  Kf7 {[%clk 0:00:38]} 39. Rh1 {[%clk 0:00:51]}  Nb2 {[%clk 0:00:29]} 40. axb5 {[%clk 0:00:44]}  axb5 {[%clk 0:00:30]} 41. Kg3 {[%clk 0:00:42]}  Ra8 {[%clk 0:00:25]} 42. h6 {[%clk 0:00:40]}  g5 {[%clk 0:00:25]} 43. Bd6 {[%clk 0:00:34]}  Kg6 {[%clk 0:00:24]} 44. h7 {[%clk 0:00:15]}  Rh8 {[%clk 0:00:23]} 45. Re1 {[%clk 0:00:14]}  Rxh7 {[%clk 0:00:20]} 46. Re6 {[%clk 0:00:14]}  Kf5 {[%clk 0:00:15]} 47. Re8 {[%clk 0:00:14]}  Ra7 {[%clk 0:00:14]} 48. a3 {[%clk 0:00:13]}  Nc4 {[%clk 0:00:13]} 49. Bc5 {[%clk 0:00:14]}  Ra6 {[%clk 0:00:10]} 50. Rc8 {[%clk 0:00:11]}  Ke6 {[%clk 0:00:10]} 51. Re8+ {[%clk 0:00:11]}  Kf7 {[%clk 0:00:08]} 52. Rc8 {[%clk 0:00:11]}  Ke6 {[%clk 0:00:08]} 53. Re8+ {[%clk 0:00:08]}  Kf5 {[%clk 0:00:07]} 54. Rc8 {[%clk 0:00:08]}  Ne3 {[%clk 0:00:06]} 55. Kf2 {[%clk 0:00:08]}  Nd1+ {[%clk 0:00:05]} 56. Kg3 {[%clk 0:00:07]}  Nxc3 {[%clk 0:00:06]} 57. Rf8 {[%clk 0:00:06]}  Ne2+ {[%clk 0:00:03]} 58. Kf2 {[%clk 0:00:06]}  Nf4 {[%clk 0:00:04]} 59. Be7 {[%clk 0:00:06]}  Nh5 {[%clk 0:00:02]} 60. Rh8 {[%clk 0:00:06]}  Kg6 {[%clk 0:00:02]} 61. Rc8 {[%clk 0:00:06]}  Ra4 {[%clk 0:00:00]} 62. Bc5 {[%clk 0:00:06]} 1-0